bitfinex/quotes_ETHUSD_20260113
["timestamp","ask_amount","ask_price","bid_price","bid_amount"]
[1768273624691,0.002,3102.7,3102.2,0.93509628]
[1768273624894,0.002,3102.7,3102.2,4.15861003]
[1768273626298,0.002,3102.7,3102.1,0.92819614]
[1768273628875,0.002,3102.7,3102.1,4.15172005]
[1768273633986,0.002,3102.7,3102.1,7.37534275]
[1768273634196,0.002,3102.4,3102.2,0.9593617]
[1768273634395,0.002,3102.7,3102.3,8.21555693]
[1768273634581,0.002,3102.7,3102.5,4.99214205]
[1768273635199,0.99682535,3102.7,3102.3,8.21555693]
[1768273635713,0.002,3102.7,3102.3,8.21555693]
[1768273637062,0.002,3102.7,3102.4,0.92712652]
[1768273637802,0.002,3102.7,3102.2,1.18012652]
[1768273638489,0.002,3102.7,3102.2,1.54435338]
[1768273638796,0.002,3102.7,3102.2,0.92712652]
[1768273639600,0.002,3102.7,3102.1,3.22361411]
[1768273640501,0.002,3102.7,3102.1,0.92712652]
[1768273641918,0.002,3102.7,3102.1,4.15073785]
[1768273644810,0.002,3102.7,3102.1,0.92712652]
[1768273645419,0.002,3102.7,3102.1,4.15074662]
[1768273646104,0.002,3102.7,3102.4,0.001]
[1768273648239,0.002,3102.7,3102.4,0.92812652]
[1768273652551,0.002,3102.7,3102.4,0.001]
[1768273655148,0.002,3102.7,3102.4,0.96415738]
[1768273655441,0.002,3102.7,3102.4,0.001]
[1768273666260,0.41579965,3102.7,3102.4,0.001]
[1768273668821,0.91320179,3102.5,3101.9,0.001]
[1768273669022,0.91320179,3102.3,3101.9,0.001]
[1768273669331,1.16620179,3102.4,3101.9,0.001]
[1768273669537,3.22352381,3102.2,3101.9,0.001]
[1768273670327,4.48377121,3102.2,3101.9,0.001]
[1768273670748,5.396973,3102.2,3101.9,0.001]
[1768273671047,1.21511863,3102.1,3100.9,0.00082031]
[1768273671251,7.70729502,3102.2,3100.9,0.00082031]
[1768273671252,0.91320179,3102.0,3101.2,0.96315738]
[1768273671547,0.91320179,3101.9,3101.2,0.96315738]
[1768273672847,0.91320179,3101.9,3101.2,4.18769946]
[1768273673260,4.90758252,3102.1,3101.3,0.96315738]
[1768273674450,0.91320179,3102.0,3101.1,0.96315738]
[1768273674657,0.91320179,3101.9,3101.1,0.96315738]
[1768273675551,0.91320179,3101.8,3100.9,0.96397769]
[1768273675752,4.13724022,3101.7,3100.9,0.96397769]
[1768273676218,0.91320179,3101.6,3100.9,0.00082031]
[1768273676869,4.98932669,3101.5,3100.9,0.00082031]
[1768273677076,4.98932669,3101.5,3100.9,0.96397769]
[1768273677236,0.91320179,3101.4,3100.9,0.00082031]
[1768273677418,4.98932669,3101.2,3100.4,0.002]
[1768273677617,3.2247662,3101.0,3100.4,4.002]
[1768273678026,3.2247662,3101.0,3100.4,0.002]
[1768273678756,0.91320179,3100.9,3100.4,0.002]
[1768273678953,3.2247662,3101.0,3100.4,0.96515738]
[1768273679632,3.72367842,3101.1,3100.4,0.96515738]
[1768273679831,0.49893267,3101.1,3100.5,0.96315738]
[1768273680036,4.39062393,3101.4,3100.5,0.96315738]
[1768273680037,3.22449209,3101.3,3100.5,0.96315738]
[1768273680217,0.91320179,3101.3,3100.4,3.22736099]
[1768273680822,3.47737156,3101.4,3100.8,0.96315738]
[1768273682443,3.50960156,3101.4,3100.8,0.96315738]
[1768273682756,0.673385,3101.3,3100.8,0.96315738]
[1768273682960,0.91320179,3101.2,3100.7,0.001]
[1768273683146,0.673385,3101.3,3100.7,0.96415738]
[1768273683549,0.705615,3101.3,3100.7,0.96415738]
[1768273683848,3.22455823,3101.2,3100.7,0.001]
[1768273684261,8.19439291,3101.2,3100.7,0.001]
[1768273685443,0.98745091,3101.1,3100.7,0.001]
[1768273685841,0.95522091,3101.1,3100.7,0.001]
[1768273686020,4.08886289,3101.2,3100.7,0.001]
[1768273686830,0.95522091,3101.1,3100.7,0.001]
[1768273687931,4.1798926,3101.1,3100.7,0.001]
[1768273688246,0.95522091,3101.0,3100.7,0.001]
[1768273688938,0.98745091,3100.9,3100.4,0.002]
[1768273689475,0.03223,3100.9,3100.4,0.002]
[1768273689941,0.95522091,3100.7,3100.4,0.002]
[1768273690338,7.45997708,3100.8,3100.4,0.002]
[1768273690636,1.27023038,3100.7,3100.1,0.002]
[1768273691862,4.49538932,3100.7,3100.1,0.002]
[1768273692073,4.52761932,3100.7,3100.1,0.002]
[1768273692577,1.30246038,3100.7,3100.1,0.002]
[1768273692872,0.98745091,3100.8,3100.1,0.90553927]
[1768273693082,0.98745091,3100.8,3100.7,0.002]
[1768273693247,0.98845091,3100.8,3100.7,0.002]
[1768273694696,0.95622091,3100.8,3100.7,0.94995334]
[1768273694840,0.001,3100.8,3100.7,0.94995334]
[1768273695662,0.95789512,3101.1,3100.7,0.002]
[1768273695988,3.22403843,3101.7,3100.7,3.2270782]
[1768273696282,0.253,3101.4,3100.7,3.2270782]
[1768273697456,0.95789512,3101.3,3100.7,3.2270782]
[1768273697698,0.253,3101.4,3100.8,0.94795334]
[1768273699158,3.50958907,3101.4,3100.8,0.94795334]
[1768273699378,0.28523,3101.4,3100.8,0.94795334]
[1768273699552,0.64222069,3101.4,3100.8,0.94795334]
[1768273700184,2.54222069,3101.4,3100.8,0.94795334]
[1768273701495,2.54222069,3101.4,3100.9,0.94795334]
[1768273705088,0.001,3101.1,3100.9,0.94795334]
[1768273706686,0.001,3101.1,3100.7,0.94995334]
[1768273707011,0.95789512,3100.7,3100.1,0.002]
[1768273707307,0.95789512,3100.7,3100.0,0.00281933]
[1768273707308,0.05480777,3100.4,3100.0,0.00281933]
[1768273707613,0.3014333,3100.3,3100.0,0.00281933]
[1768273707915,0.05480777,3100.4,3100.0,0.00281933]
[1768273708079,0.30133703,3100.3,3100.0,0.00281933]
[1768273708279,3.28030117,3100.4,3100.0,0.00281933]
[1768273708591,0.95176018,3100.3,3100.0,0.00281933]
[1768273708791,0.65055933,3100.3,3100.0,0.00281933]
[1768273708993,3.28019879,3100.4,3100.0,0.00281933]
[1768273709905,6.50558981,3100.4,3100.0,0.002]
[1768273710095,0.30100093,3100.3,3099.5,0.00281958]
[1768273710288,3.22532384,3100.5,3099.5,0.95077292]
[1768273710513,0.71789559,3100.4,3099.5,0.03508284]
[1768273710712,0.41688355,3100.4,3099.5,0.95077292]
[1768273711190,0.41688355,3100.4,3099.5,0.98303618]
[1768273711423,3.22528977,3100.5,3099.5,0.95077292]
[1768273711719,0.30091573,3100.4,3099.5,0.95077292]
[1768273712021,3.22528977,3100.5,3099.5,0.98303618]
[1768273712230,3.52626629,3100.4,3099.6,0.94795334]
[1768273712439,3.22529099,3100.5,3099.6,0.94795334]
[1768273712648,0.75316937,3100.4,3099.6,0.94795334]
[1768273712930,0.45232239,3100.4,3099.6,0.94795334]
[1768273713632,0.95789512,3100.3,3099.5,0.00281958]
[1768273714032,0.95789512,3100.3,3099.5,3.22914101]
[1768273714932,4.18339896,3100.3,3099.5,3.22914101]
[1768273715122,0.46679514,3100.2,3099.5,3.22914101]
[1768273715432,0.98915397,3100.1,3099.5,3.22914101]
[1768273715630,0.48455239,3100.4,3099.6,0.99651714]
[1768273715631,0.45232239,3100.4,3099.6,0.99651714]
[1768273715928,3.22517824,3100.7,3099.8,0.99651714]
[1768273716140,0.254,3100.5,3099.8,0.99651714]
[1768273716430,0.254,3100.5,3099.9,0.99651714]
[1768273717038,0.254,3100.5,3099.9,0.99851714]
[1768273717628,1.24315397,3100.5,3099.9,0.002]
[1768273717837,0.45005822,3100.4,3099.9,0.002]
[1768273718697,1.24315397,3100.5,3099.9,0.002]
[1768273719635,4.46846252,3100.5,3099.9,0.002]
[1768273719841,1.24315397,3100.5,3099.9,0.002]
[1768273720443,0.98915397,3100.4,3099.9,0.002]
[1768273721111,0.254,3100.5,3099.9,0.002]
[1768273721444,0.98915397,3100.8,3100.0,0.99651714]
[1768273721615,0.28623,3100.7,3100.0,0.99651714]
[1768273722016,2.18623,3100.7,3100.0,0.99651714]
[1768273722341,3.17538397,3100.7,3099.9,5.63675042]
[1768273722514,0.98915397,3100.6,3099.9,0.002]
[1768273722945,0.98915397,3100.5,3099.9,0.002]
[1768273725144,0.03223,3100.4,3099.9,0.002]
[1768273725332,0.98915397,3100.4,3099.9,0.002]
[1768273727362,1.02138397,3100.6,3099.9,3.22791051]
[1768273728464,1.02138397,3100.6,3099.9,0.002]
[1768273728667,0.98915397,3100.5,3099.9,0.002]
[1768273729549,0.001,3100.3,3099.9,0.002]
[1768273729751,0.99015397,3100.3,3099.9,0.002]
[1768273733669,0.001,3100.3,3099.9,0.002]
[1768273737281,0.99015397,3100.3,3099.9,0.002]
[1768273737507,0.98915397,3100.1,3099.9,0.002]
[1768273739816,0.001,3100.3,3099.9,0.99851714]
[1768273740114,0.001,3100.3,3100.1,0.99651714]
[1768273740826,0.001,3100.3,3100.0,4.9971375]
[1768273740996,0.001,3100.3,3100.0,8.22292609]
[1768273741187,0.001,3100.3,3100.0,4.9971375]
[1768273741417,0.001,3100.3,3100.0,8.22292057]
[1768273742125,0.001,3100.3,3100.0,9.21943771]
[1768273743291,0.001,3101.1,3100.3,0.99651714]
[1768273743541,0.3017792,3101.0,3100.5,5.99365464]
[1768273743707,0.3017792,3100.9,3100.5,5.99365464]
[1768273743908,0.3017792,3100.8,3100.5,5.99365464]
[1768273744129,0.255,3101.1,3100.5,9.21890209]
[1768273744300,0.30174032,3101.0,3100.6,0.99651714]
[1768273744501,0.30174032,3100.9,3100.6,0.99651714]
[1768273744707,0.91720534,3101.0,3100.2,4.18809893]
[1768273744912,1.6618538,3100.9,3100.1,3.22567879]
[1768273745106,0.3017372,3100.8,3100.1,3.22567879]
[1768273745395,5.91434284,3100.3,3099.9,0.002]
[1768273745602,0.3339305,3100.2,3099.9,0.002]
[1768273745920,0.03223,3100.2,3099.9,0.002]
[1768273746512,3.25788225,3100.2,3099.9,0.002]
[1768273746829,0.74005911,3100.1,3099.9,0.002]
[1768273748498,0.03223,3100.2,3099.9,0.002]
[1768273749291,3.25783602,3100.2,3099.9,0.002]
[1768273749497,0.91720534,3100.1,3099.9,0.002]
[1768273749694,0.03223,3100.2,3099.9,0.002]
[1768273750542,3.22552058,3100.3,3099.9,0.002]
[1768273750543,0.03223,3100.3,3099.9,0.002]
[1768273750727,0.65269056,3100.2,3099.9,0.002]
[1768273750900,0.35116213,3100.2,3099.9,0.002]
[1768273752434,1.26836747,3100.2,3099.9,0.002]
[1768273752734,0.91720534,3100.1,3099.9,0.002]
[1768273753559,0.35116213,3100.2,3099.9,0.002]
[1768273753855,0.9970985,3100.3,3099.9,0.002]
[1768273754027,0.30148167,3100.2,3099.9,0.002]
[1768273754226,0.9970985,3100.3,3099.9,0.002]
[1768273754438,0.30146686,3100.2,3099.9,0.002]
[1768273754638,0.9970985,3100.3,3099.9,0.002]
[1768273754840,0.301467,3100.2,3099.9,0.002]
[1768273755032,0.45240861,3100.1,3099.9,0.002]
[1768273755440,0.9970985,3100.3,3099.9,0.002]
[1768273755659,0.30153429,3100.2,3099.9,0.002]
[1768273755824,0.9970985,3100.3,3099.9,0.002]
[1768273756024,4.22263074,3100.3,3099.9,0.002]
[1768273756960,0.9648685,3100.1,3099.5,0.00281958]
[1768273757168,0.9648685,3101.0,3099.8,4.9971375]
[1768273757340,4.4436347,3101.0,3100.2,5.93795066]
[1768273757846,1.2188685,3101.0,3100.2,5.93795066]
[1768273758048,4.44364803,3101.0,3100.2,5.93795066]
[1768273760765,1.2188685,3101.0,3100.2,9.16353081]
[1768273761066,0.254,3101.0,3100.3,1.85716624]
[1768273762856,0.254,3101.0,3100.3,6.85430374]
[1768273764833,0.001,3100.7,3100.3,6.85430374]
[1768273767264,0.001,3100.7,3100.3,1.85716624]
[1768273767568,0.001,3100.7,3100.3,0.94081316]
[1768273769071,0.001,3100.7,3100.3,4.16629821]
[1768273770438,0.001,3100.7,3100.2,8.2227193]
[1768273771056,0.001,3100.7,3100.2,4.9971375]
[1768273771331,0.9658685,3100.7,3099.9,3.22590301]
[1768273771671,0.9658685,3100.7,3099.7,0.94081316]
[1768273771672,0.9658685,3100.7,3099.8,0.254]
[1768273771975,0.9658685,3100.7,3099.8,3.48001433]
[1768273772177,0.9648685,3100.5,3099.8,3.48001433]
[1768273772673,0.9648685,3100.5,3099.7,8.22323563]
[1768273773350,0.9648685,3100.5,3099.7,4.9971375]
[1768273774670,4.19017888,3100.5,3099.7,4.9971375]
[1768273774838,0.94681069,3100.4,3099.6,3.22618809]
[1768273775463,0.94681069,3100.4,3099.5,9.42105733]
[1768273775869,0.94681069,3100.4,3099.5,8.22624417]
[1768273776073,0.94681069,3100.4,3099.6,3.22621023]
[1768273776578,0.94681069,3100.4,3100.1,0.002]
[1768273776874,0.94681069,3100.3,3100.1,0.002]
[1768273777443,0.94681069,3100.2,3099.8,0.002]
[1768273782784,4.17243976,3100.2,3099.8,0.002]
[1768273785073,0.94681069,3100.2,3099.8,0.002]
[1768273785767,0.001,3100.7,3100.1,4.99751252]
[1768273785968,0.001,3101.1,3100.1,4.99751252]
[1768273785969,0.001,3101.1,3100.4,5.91165769]
[1768273786171,3.47971109,3101.1,3100.5,0.91414517]
[1768273786488,4.42652178,3101.1,3100.4,4.99751252]
[1768273787588,0.255,3101.1,3100.5,0.91414517]
[1768273788704,0.001,3100.8,3100.5,0.91414517]
[1768273789492,0.001,3100.8,3100.3,5.91165769]
[1768273789660,0.94781069,3100.8,3099.9,5.91165769]
[1768273789860,0.94781069,3100.8,3100.0,0.59136577]
[1768273790105,0.94781069,3100.8,3099.8,0.91614517]
[1768273790685,0.94781069,3100.8,3099.9,3.22582625]
[1768273790895,0.94781069,3100.8,3100.0,3.22580494]
[1768273791926,0.94681069,3100.7,3099.9,4.14001678]
[1768273792627,0.94681069,3100.7,3099.9,0.91414517]
[1768273792785,0.94681069,3100.5,3099.8,0.002]
[1768273794108,0.94681069,3100.4,3099.8,0.002]
[1768273795713,0.94681069,3100.3,3099.8,0.002]
[1768273797015,4.17212856,3100.5,3099.8,0.002]
[1768273799323,0.94681069,3100.5,3099.8,0.002]
[1768273799524,0.19405993,3100.4,3099.8,0.002]
[1768273800092,0.19405993,3100.4,3100.1,0.002]
[1768273801210,0.001,3100.8,3100.1,0.91614517]
[1768273805132,0.001,3100.8,3100.2,0.98080808]
[1768273805423,0.001,3100.8,3100.4,0.98080808]
[1768273806019,0.93366002,3101.5,3100.7,0.98080808]
[1768273806236,0.93283655,3101.4,3100.7,0.98080808]
[1768273806391,0.25482347,3101.5,3100.7,0.98080808]
[1768273806595,0.35594457,3101.4,3100.7,0.98080808]
[1768273806793,1.28878112,3101.4,3100.7,0.98080808]
[1768273807142,0.35594457,3101.4,3100.7,0.98080808]
[1768273807312,3.58031535,3101.4,3100.7,0.98080808]
[1768273807515,4.5131519,3101.4,3100.7,0.98080808]
[1768273807717,0.47679754,3101.3,3100.7,0.98080808]
[1768273810469,3.70126986,3101.3,3100.7,0.98080808]
[1768273810670,0.93283655,3101.2,3100.5,4.20606334]
[1768273810816,0.93283655,3101.2,3100.5,0.98080808]
[1768273811140,0.93283655,3101.2,3100.4,3.47938372]
[1768273811337,0.93283655,3101.2,3100.4,0.254]
[1768273811661,0.93283655,3101.2,3100.3,4.46028399]
[1768273811848,0.93283655,3101.2,3100.4,0.94577965]
[1768273812247,0.93283655,3101.2,3100.7,0.002]
[1768273814722,0.47679754,3101.3,3100.7,0.96600457]
[1768273815049,0.35594457,3101.4,3100.7,0.96600457]
[1768273815255,3.83430318,3101.4,3100.7,0.96600457]
[1768273816357,0.35594457,3101.4,3100.9,0.96400457]
[1768273816524,0.35594457,3101.4,3100.8,4.99751252]
[1768273816525,0.00081933,3101.6,3101.2,0.96400457]
[1768273816724,0.002,3101.9,3101.4,0.96400457]
[1768273817851,0.002,3101.9,3101.2,0.96400457]
[1768273818963,0.98328042,3101.8,3101.0,4.18873214]
[1768273819126,1.75196422,3101.8,3101.0,0.96400457]
[1768273820169,1.75196422,3101.8,3101.0,4.18876696]
[1768273820644,1.75196422,3101.8,3101.0,0.96400457]
[1768273820848,0.98328042,3101.7,3100.8,8.47645043]
[1768273821026,0.98328042,3101.5,3100.7,0.96600457]
[1768273821227,0.98328042,3101.4,3100.7,0.96600457]
[1768273821426,0.98328042,3101.4,3100.7,0.002]
[1768273822532,0.98328042,3101.4,3100.7,3.22707018]
[1768273822739,0.98328042,3101.4,3100.7,4.19107475]
[1768273823464,0.253,3101.6,3100.8,0.96400457]
[1768273823662,0.77590662,3101.6,3100.8,0.96400457]
[1768273824158,0.001,3101.2,3100.8,0.96400457]
[1768273824862,0.001,3101.2,3100.7,0.002]
[1768273825656,0.98428042,3101.2,3100.7,0.002]
[1768273829884,4.2088422,3101.2,3100.7,0.002]
[1768273830061,1.40516464,3101.2,3100.7,0.002]
[1768273831551,0.98328042,3101.0,3100.7,0.002]
[1768273833588,3.74709308,3101.6,3100.7,0.002]
[1768273833589,0.002,3104.3,3102.9,0.96400457]
[1768273833792,0.05480777,3105.5,3103.4,0.00081306]
[1768273834092,0.0050967,3106.2,3105.2,4.99751252]
[1768273834246,0.0050967,3106.2,3103.7,1.63496437]
[1768273834247,0.00080482,3106.4,3103.6,0.16]
[1768273834451,0.05480777,3104.9,3104.5,0.99648997]
[1768273834662,0.05480777,3105.2,3105.0,0.957985]
[1768273834880,0.05480777,3105.8,3105.1,4.99751252]
[1768273835083,0.05480777,3106.3,3105.5,4.99751252]
[1768273835292,0.05480777,3106.3,3105.2,0.253]
[1768273835293,0.04830218,3105.9,3105.2,0.253]
[1768273835451,0.04830218,3106.1,3105.3,0.95220549]
[1768273835658,0.04830218,3106.1,3105.4,0.95220549]
[1768273835869,0.04830218,3105.8,3105.4,0.95220549]
[1768273836072,0.04830218,3106.0,3105.4,0.95220549]
[1768273836601,0.04830218,3106.0,3105.5,0.95220549]
[1768273837090,0.04830218,3105.8,3105.5,0.95220549]
[1768273837956,0.04830218,3106.1,3105.5,0.95220549]
[1768273838159,0.04830218,3105.8,3105.5,0.95220549]
[1768273839374,0.04830218,3105.8,3105.3,0.253]
[1768273839571,0.04830218,3105.8,3105.3,1.20520549]
[1768273839761,0.04830218,3105.8,3105.3,0.95220549]
[1768273840090,0.04830218,3105.9,3105.4,0.95220549]
[1768273840395,0.04830218,3105.5,3105.0,0.253]
[1768273840566,0.04830218,3105.5,3105.0,1.20520549]
[1768273843194,0.04830218,3105.7,3105.0,0.95220549]
[1768273843494,3.26820911,3105.7,3105.0,0.95220549]
[1768273843890,0.04830218,3105.7,3105.1,3.82]
[1768273844098,0.37995331,3105.7,3105.1,3.82]
[1768273844807,3.59987305,3105.7,3105.1,3.82]
[1768273844965,0.37995331,3105.7,3105.1,3.82]
[1768273845597,3.59986205,3105.7,3105.1,3.82]
[1768273846110,0.04830218,3105.5,3105.1,3.82]
[1768273846405,0.37995331,3105.7,3105.1,3.82]
[1768273846574,0.91757063,3105.6,3105.1,3.82]
[1768273846763,0.37995331,3105.7,3105.1,3.82]
[1768273847476,0.25380482,3106.4,3105.3,0.95220549]
[1768273848021,0.25380482,3106.4,3105.5,0.95220549]
[1768273848182,0.25380482,3106.4,3105.3,0.95320549]
[1768273848512,0.25380482,3106.4,3105.5,0.95220549]
[1768273848870,0.25380482,3106.4,3105.7,0.95220549]
[1768273849485,0.25380482,3106.4,3105.8,0.95220549]
[1768273851100,0.60607375,3106.4,3105.8,0.95220549]
[1768273851297,0.25380482,3106.4,3105.5,4.17229385]
[1768273851668,0.25380482,3106.4,3105.6,0.95220549]
[1768273854601,0.25380482,3106.4,3105.6,4.17217857]
[1768273855500,0.25380482,3106.4,3105.7,0.95220549]
[1768273857285,3.47299813,3106.4,3105.7,0.95220549]
[1768273857486,0.04830218,3106.3,3105.7,0.95220549]
[1768273857769,0.04830218,3106.3,3105.4,0.95220549]
[1768273857974,0.04830218,3106.1,3105.5,0.28318895]
[1768273858208,0.04830218,3105.9,3105.3,0.001]
[1768273858409,0.04830218,3105.9,3105.3,4.001]
[1768273858410,0.253,3105.8,3105.3,4.001]
[1768273859209,0.253,3105.8,3105.3,0.001]
[1768273859410,0.60510243,3105.8,3105.6,0.001]
[1768273859581,0.253,3105.8,3105.6,0.001]
[1768273861897,0.002,3106.1,3105.6,0.95320549]
[1768273862096,0.002,3106.1,3105.6,0.001]
[1768273862287,0.002,3106.1,3105.6,0.95320549]
[1768273865281,0.002,3106.1,3105.9,0.9680257]
[1768273865689,0.002,3106.1,3105.6,0.9690257]
[1768273866103,0.002,3106.1,3105.7,3.21984669]
[1768273866306,0.002,3106.1,3105.6,0.001]
[1768273866307,0.002,3106.1,3105.6,3.22092578]
[1768273866526,0.002,3106.1,3105.6,0.001]
[1768273870312,0.90524938,3106.0,3105.6,0.001]
[1768273870712,0.90524938,3106.0,3105.3,3.22127585]
[1768273870903,0.90524938,3106.0,3105.3,3.86866372]
[1768273871104,0.002,3106.1,3105.3,4.83668942]
[1768273871636,0.002,3106.1,3105.5,3.22009338]
[1768273871637,0.002,3105.8,3105.5,3.22009338]
[1768273872136,0.002,3105.8,3105.4,4.18819841]
[1768273874301,0.002,3105.8,3105.3,0.001]
[1768273874510,0.729089,3105.3,3105.1,2.270911]
[1768273874714,0.32823798,3105.4,3105.2,3.82]
[1768273875320,0.253,3105.7,3105.3,1.02465444]
[1768273876426,0.253,3105.7,3105.3,0.99245144]
[1768273876630,0.253,3105.7,3105.4,1.02465341]
[1768273876823,0.253,3105.7,3105.4,0.99245144]
[1768273878038,0.253,3105.7,3105.5,3.82]
[1768273880944,3.47292567,3105.7,3105.4,3.82]
[1768273881148,0.92246239,3105.7,3105.4,3.82]
[1768273882637,4.14235131,3105.7,3105.4,3.82]
[1768273882837,0.92246239,3105.7,3105.4,3.82]
[1768273884246,0.253,3105.7,3105.4,3.82]
[1768273884415,3.4729277,3105.7,3105.4,3.82]
[1768273884615,4.97992249,3105.6,3104.9,0.99245144]
[1768273885139,5.02822467,3105.6,3104.9,0.99245144]
[1768273887166,3.22009338,3105.5,3104.9,0.99245144]
[1768273887347,4.39221796,3105.5,3104.9,0.99245144]
[1768273888464,4.39221796,3105.5,3104.6,4.21346788]
[1768273888667,4.39221796,3105.5,3104.8,0.99245144]
[1768273888856,3.22009338,3105.5,3104.8,0.99245144]
[1768273889868,6.44018676,3105.5,3104.8,0.99245144]
[1768273891935,3.22009338,3105.5,3104.8,0.99245144]
[1768273892371,6.44018676,3105.5,3104.4,4.21365731]
[1768273892543,0.04830218,3105.4,3104.5,0.99245144]
[1768273892743,0.04830218,3105.2,3104.5,0.99245144]
[1768273892966,0.253,3105.1,3104.5,0.99245144]
[1768273893955,3.22061191,3105.0,3104.5,0.99245144]
[1768273894157,6.489526,3105.0,3104.1,0.99245144]
[1768273894336,0.6694123,3104.9,3104.1,0.99245144]
[1768273894938,0.6694123,3104.9,3104.7,0.001]
[1768273895242,0.6694123,3104.9,3104.7,1e-08]
[1768273896061,3.22081937,3104.8,3104.7,1e-08]
[1768273897673,3.93673395,3104.8,3104.7,1e-08]
[1768273905991,7.15755332,3104.8,3104.2,3.82]
[1768273906304,0.04830218,3104.7,3104.1,3.82]
[1768273906466,0.253,3104.6,3104.1,4.73439321]
[1768273906796,3.22113061,3104.5,3104.1,4.73439321]
[1768273907179,3.22113061,3104.5,3104.1,3.82]
[1768273908064,3.4740521,3104.6,3104.1,3.82]
[1768273908393,3.4740521,3104.6,3104.1,4.73439321]
[1768273909595,3.4740521,3104.6,3104.2,0.91439321]
[1768273910697,6.6951042,3104.6,3104.1,3.82]
[1768273910993,0.91439321,3104.4,3104.0,0.00162922]
[1768273911903,0.04830218,3104.5,3104.0,0.00162922]
[1768273913107,3.26951577,3104.5,3104.0,0.00162922]
[1768273913707,3.26951577,3104.5,3104.0,0.91602243]
[1768273914092,3.26951577,3104.5,3104.0,0.00162922]
[1768273914408,0.43598872,3104.4,3104.0,0.00162922]
[1768273914910,0.43598872,3104.4,3104.0,0.91602243]
[1768273915209,3.22121359,3104.5,3104.0,0.91602243]
[1768273917602,6.44242718,3104.5,3104.0,0.91602243]
[1768273917908,3.22121359,3104.5,3104.0,0.91602243]
[1768273918114,0.002,3104.1,3104.0,0.91602243]
[1768273928317,0.002,3104.1,3104.0,0.00162922]
[1768273928622,0.34963777,3104.1,3103.8,3.82]
[1768273928826,0.002,3104.1,3103.8,3.82]
[1768273933824,0.002,3104.1,3103.5,3.82]
[1768273934020,0.002,3104.1,3103.5,7.04216421]
[1768273934228,0.002,3104.1,3103.6,0.93554177]
[1768273935615,0.91639321,3104.1,3103.5,7.04213852]
[1768273936730,0.91639321,3104.1,3103.5,3.82]
[1768273937033,0.91639321,3104.1,3103.5,7.04216809]
[1768273937358,0.91639321,3104.1,3103.6,3.82]
[1768273937635,0.002,3104.1,3103.6,3.82]
[1768273937841,0.002,3104.1,3103.7,0.93554177]
[1768273942218,0.002,3104.1,3104.0,0.001]
[1768273943950,0.002,3104.1,3104.0,1e-08]
[1768273954174,0.76804028,3104.1,3104.0,1e-08]
[1768273954467,0.76804028,3104.1,3103.5,4.75554177]
[1768273954640,0.76804028,3104.1,3103.6,0.95105789]
[1768273956074,0.76804028,3104.1,3103.5,3.82]
[1768273956743,3.98961733,3104.1,3103.5,4.77105789]
[1768273957880,0.76804028,3104.1,3103.6,0.95105789]
[1768273958100,0.253,3105.0,3104.4,0.95105789]
[1768273958778,0.253,3105.0,3104.5,0.95105789]
[1768273960675,0.253,3105.0,3104.5,4.17217194]
[1768273960881,0.253,3105.0,3104.6,0.95105789]
[1768273961079,0.253,3105.0,3104.6,1.36827508]
[1768273961278,0.253,3105.0,3104.7,0.95105789]
[1768273961882,0.253,3105.0,3104.4,0.95105789]
[1768273963652,0.253,3105.0,3104.5,0.95105789]
[1768273965580,0.002,3104.7,3104.5,0.95105789]
[1768273965791,0.002,3104.7,3104.5,1.36828001]
[1768273972657,3.26841256,3105.5,3104.5,1.36828001]
[1768273972658,0.00164031,3106.9,3106.5,0.95105789]
[1768273972861,0.96192108,3107.8,3106.8,4.9823212]
[1768273973082,0.0008058,3107.9,3106.8,0.95105789]
[1768273973282,0.62069196,3107.9,3106.8,0.95105789]
[1768273973591,0.62069196,3107.9,3107.0,0.95105789]
[1768273973592,0.0008058,3107.9,3107.0,0.95105789]
[1768273973764,0.253,3107.8,3107.0,0.95105789]
[1768273976280,5.2353212,3107.8,3107.0,0.95105789]
[1768273976595,0.253,3107.8,3107.0,0.95105789]
[1768273977061,0.96192108,3107.7,3106.6,3.21894473]
[1768273977259,0.96192108,3107.6,3106.9,3.21861848]
[1768273977676,0.96192108,3107.5,3107.0,3.21853772]
[1768273977888,0.253,3107.6,3107.1,0.95105789]
[1768273980288,0.96192108,3107.5,3106.7,3.2188185]
[1768273980490,0.96192108,3107.5,3106.4,9.15252644]
[1768273980681,6.56396651,3107.4,3106.4,5.08545788]
[1768273980880,0.96192108,3107.3,3106.4,5.08545788]
[1768273981080,0.61972423,3107.4,3106.6,0.95105789]
[1768273983375,0.61972423,3107.4,3106.8,0.95105789]
[1768273983694,0.253,3107.6,3106.8,0.95105789]
[1768273984000,0.253,3107.6,3106.9,0.95105789]
[1768273985603,0.253,3107.6,3107.0,0.03218538]
[1768273985804,0.253,3107.6,3107.0,3.25066803]
[1768273986288,0.253,3107.6,3107.1,0.03218435]
[1768273986468,0.253,3107.5,3107.0,4.17214533]
[1768273987908,0.253,3107.5,3106.4,0.95366268]
[1768273987909,0.95075753,3107.4,3106.4,0.95366268]
[1768273988204,0.253,3107.5,3106.8,0.95366268]
[1768273988404,0.253,3107.5,3106.9,0.95366268]
[1768273989210,0.60008144,3107.5,3106.9,0.95366268]
[1768273989372,0.253,3107.5,3106.7,4.17249074]
[1768273989575,0.253,3107.5,3106.9,3.82]
[1768273991578,0.253,3107.5,3106.9,3.21864021]
[1768273991808,0.253,3107.5,3107.2,0.8]
[1768274000580,0.253,3107.5,3107.3,0.001]
[1768274000781,0.69516093,3107.5,3107.3,0.001]
[1768274002483,0.253,3107.5,3107.3,0.001]
[1768274002909,1.20325316,3107.5,3107.3,0.001]
[1768274003506,4.42128646,3107.5,3107.3,0.00013751]
[1768274003815,1.20325316,3107.5,3107.3,0.00013751]
[1768274004393,0.253,3107.5,3107.3,0.00013751]
[1768274004590,0.52353212,3107.4,3107.3,0.00013751]
[1768274008194,0.253,3107.4,3107.3,0.00013751]
[1768274008789,0.253,3107.4,3107.3,0.95682844]
[1768274012530,0.20848612,3107.4,3107.3,0.95682844]
[1768274012725,0.20848612,3107.4,3107.3,0.95538225]
[1768274013116,0.20848612,3107.4,3107.3,0.88521687]